Cogmind - Beta 10.2 @@@ ROGUE MODE // 2021.01.20 @ 17:36:54 Player: zzxc Result: Self-destructed Performance ------------- Evolutions (4) 2000 Regions Visited (8) 1600 Robots Destroyed (1) 5 Value Destroyed (0) 0 Prototype IDs (0) 0 Alien Tech Used (0) 0 Bonus (1618) 1618 TOTAL SCORE: 5223 Bonus ------- Pacifist 1125 Aligned with FarCom 300 Scanned by Researcher 500 Friendly Fire -307 Cogmind --------- Core Integrity 556/850 Matter 300/300 Energy 100/100 System Corruption 5% Temperature Cool (0) Movement Core (50) Location -6/Lower Caves Parts ------- > --- POWER (2) -------- (None) > --- PROPULSION (9) --- (None) > --- UTILITY (2) ------ (None) > --- WEAPON (2) ------- Heavy Pick > --- INVENTORY (4) ---- Assault Cannon Assault Cannon Field Lobotomy Kit Peak State ------------ > --- POWER ------------ (None) > --- PROPULSION ------- Light Treads Light Treads Armored Treads Advanced Treads Aluminum Leg > --- UTILITY ---------- (None) > --- WEAPON ----------- Heavy Pick > --- INVENTORY -------- Assault Cannon Assault Cannon Field Lobotomy Kit [Rating: 15] Favorites ----------- Power Light Ion Engine Engine Light Ion Engine Propulsion Aluminum Leg Treads Light Treads Leg Aluminum Leg Utility None Weapon Heavy Pick Ballistic Gun Assault Rifle Piercing Weapon Heavy Pick Build | -11 -10 -10 -10 -9 -8 -7 -6 -6 ------- Run | Scr Mat Min Exi Min Mat Fac Fac Low Slots Evolved 8 | . . . . . 4 2 2 . Power 1 | . . . . . 1 . . . Propulsion 7 | . . . . . 3 2 2 . Utility . | . . . . . . . . . Weapon . | . . . . . . . . . Parts Attached 5 | . . . . . 3 1 1 . Power . | . . . . . . . . . Engine . | . . . . . . . . . Core . | . . . . . . . . . Reactor . | . . . . . . . . . Propulsion 4 | . . . . . 3 1 . . Treads 4 | . . . . . 3 1 . . Leg . | . . . . . . . . . Wheel . | . . . . . . . . . Hover . | . . . . . . . . . Flight . | . . . . . . . . . Utility . | . . . . . . . . . Device . | . . . . . . . . . Storage . | . . . . . . . . . Processor . | . . . . . . . . . Hackware . | . . . . . . . . . Protection . | . . . . . . . . . Artifact . | . . . . . . . . . Weapon 1 | . . . . . . . 1 . Energy Gun . | . . . . . . . . . Energy Cannon . | . . . . . . . . . Ballistic Gun . | . . . . . . . . . Ballistic Cannon . | . . . . . . . . . Launcher . | . . . . . . . . . Special Weapon . | . . . . . . . . . Impact Weapon . | . . . . . . . . . Slashing Weapon . | . . . . . . . . . Piercing Weapon 1 | . . . . . . . 1 . Special Melee Weapon . | . . . . . . . . . Unidentified Prototypes . | . . . . . . . . . Parts Lost 6 | . . . . . 1 . 2 3 Power . | . . . . . . . . . Propulsion 6 | . . . . . 1 . 2 3 Utility . | . . . . . . . . . Weapon . | . . . . . . . . . Highest Loss Streak 2 | . . . . . 1 . 2 2 Average Slot Usage (%) 26 | . 28 28 28 28 27 38 35 19 Treads 11 | . . . . . 12 30 26 12 Leg 12 | . 28 28 28 28 15 7 6 . Piercing Weapon 2 | . . . . . . . 2 6 Naked Turns . | . . . . . . . . . Heaviest Build 3 | . . . . . . . 3 3 Greatest Support 3 | 3 3 3 3 3 3 3 3 3 Greatest Overweight (x) . | . . . . . . . . . Average Overweight (x) . | . . . . . . . . . Largest Inventory Capacity 4 | 4 4 4 4 4 4 4 4 4 Average Capacity 4 | 4 4 4 4 4 4 4 4 4 Most Carried 4 | 4 2 2 3 3 4 3 3 3 Average Carried 2 | 3 2 2 2 3 3 3 3 3 Final Capacity 4 | 4 4 4 4 4 4 4 4 4 Final Carried 4 | 2 2 2 3 3 4 3 3 3 Class Distribution -------------------- 100% | Mutant Dominant Class ---------------- Mutant | -10/Materials Mutant | -10/Mines Mutant | -10/Exiles Mutant | -9/Mines Mutant | -8/Materials Mutant | -7/Factory Mutant | -6/Factory Mutant | -6/Lower Caves Resources | -11 -10 -10 -10 -9 -8 -7 -6 -6 ----------- Run | Scr Mat Min Exi Min Mat Fac Fac Low Matter Collected 232 | 200 . . . . . . . 32 Remotely . | . . . . . . . . . Salvage Created 208 | . . . . . . . . 208 Parts 1 | . . . . . . . . 1 Haulers Intercepted . | . . . . . . . . . Recyclers Shooed . | . . . . . . . . . Parts Field Recycled . | . . . . . . . . . Retrieved Matter . | . . . . . . . . . Parts Self-Destructed . | . . . . . . . . . Prevented . | . . . . . . . . . Kills | -11 -10 -10 -10 -9 -8 -7 -6 -6 ------- Run | Scr Mat Min Exi Min Mat Fac Fac Low Combat Hostiles Destroyed . | . . . . . . . . . Classes Destroyed 2 | . . . . . . . . 2 Packrat 2 | . . . . . . . . 2 Savage 1 | . . . . . . . . 1 Best Kill Streak . | . . . . . . . . . Combat Bots Only . | . . . . . . . . . Max Kills in Single Turn 1 | . . . . . . . . 1 Gunslinging . | . . . . . . . . . Exploded . | . . . . . . . . . Melee . | . . . . . . . . . Uniques/NPCs Destroyed . | . . . . . . . . . Combat | -11 -10 -10 -10 -9 -8 -7 -6 -6 -------- Run | Scr Mat Min Exi Min Mat Fac Fac Low Damage Taken 1311 | . 11 97 . 20 463 . 88 632 Core 384 | . . 36 . . 54 . 10 284 Absorbed by Shields . | . . . . . . . . . Core Remaining (%) 93 | 100 . . . 85 90 100 . . Volleys Fired . | . . . . . . . . . Largest . | . . . . . . . . . Hottest . | . . . . . . . . . Shots Fired . | . . . . . . . . . Gun . | . . . . . . . . . Cannon . | . . . . . . . . . Launcher . | . . . . . . . . . Special . | . . . . . . . . . Kinetic . | . . . . . . . . . Thermal . | . . . . . . . . . Explosive . | . . . . . . . . . Electromagnetic . | . . . . . . . . . Robot Hit Streak . | . . . . . . . . . Robot Miss Streak . | . . . . . . . . . Penetration Max . | . . . . . . . . . Secondary Targets . | . . . . . . . . . Shots Hit Robots 5 | . . . . . . . . 5 Core Hits 2 | . . . . . . . . 2 Critical Hits . | . . . . . . . . . Critical Kills . | . . . . . . . . . Critical Parts Destroyed . | . . . . . . . . . Melee Attacks 6 | . . . . . . . . 6 Impact . | . . . . . . . . . Slashing . | . . . . . . . . . Piercing 6 | . . . . . . . . 6 Sneak Attacks 4 | . . . . . . . . 4 Combat Hostiles . | . . . . . . . . . Follow-up Attacks . | . . . . . . . . . Damage Inflicted 424 | . . . . . . . . 424 Guns . | . . . . . . . . . Cannons . | . . . . . . . . . Explosions . | . . . . . . . . . Melee 424 | . . . . . . . . 424 Ramming . | . . . . . . . . . Kinetic . | . . . . . . . . . Thermal . | . . . . . . . . . Explosive . | . . . . . . . . . Electromagnetic . | . . . . . . . . . Impact . | . . . . . . . . . Slashing . | . . . . . . . . . Piercing 424 | . . . . . . . . 424 Highest Corruption 5 | . . . . . . . . 5 Average Corruption 2 | . . . . . . . . 2 Corruption Purged . | . . . . . . . . . Effects 1 | . . . . . . . . 1 Message Errors 1 | . . . . . . . . 1 Overload Shots . | . . . . . . . . . Overflow Damage 81 | . . . . . . . . 81 Projectiles . | . . . . . . . . . Explosions . | . . . . . . . . . Melee 81 | . . . . . . . . 81 Knockbacks . | . . . . . . . . . Impact . | . . . . . . . . . Kinetic . | . . . . . . . . . Secondary . | . . . . . . . . . Self-Inflicted Damage . | . . . . . . . . . Shots . | . . . . . . . . . Rammed 1 | . . . . . . . 1 . Targets Rammed 1 | . . . . . . . 1 . Kicked . | . . . . . . . . . Crushed . | . . . . . . . . . Highest Temperature . | . . . . . . . . . Average Temperature . | . . . . . . . . . Received Heat Transfer 135 | . 6 6 . 12 54 . 48 9 Siege Activations . | . . . . . . . . . Robots Corrupted . | . . . . . . . . . Combat Hostiles . | . . . . . . . . . Parts Fried . | . . . . . . . . . Impact Corruptions . | . . . . . . . . . Robots Melted . | . . . . . . . . . Combat Hostiles . | . . . . . . . . . Parts Melted . | . . . . . . . . . Heat Transferred . | . . . . . . . . . Parts Sabotaged . | . . . . . . . . . Parts Stolen . | . . . . . . . . . Parts Stripped . | . . . . . . . . . Power Chain Reactions . | . . . . . . . . . Missiles Intercepted . | . . . . . . . . . Alert | -11 -10 -10 -10 -9 -8 -7 -6 -6 ------- Run | Scr Mat Min Exi Min Mat Fac Fac Low Peak Influence 185 | . 30 157 . . 185 84 70 . Initial 84 | . . 11 . . . 84 40 . Average 49 | . 16 74 . . 34 84 53 . Maximum Alert Level . | . . . . . . . . . Low Security (%) 100 | 100 100 100 . 100 100 100 100 . Level 1 . | . . . . . . . . . Level 2 . | . . . . . . . . . Level 3 . | . . . . . . . . . Level 4 . | . . . . . . . . . Level 5 . | . . . . . . . . . High Security . | . . . . . . . . . Max Security . | . . . . . . . . . Squads Dispatched 4 | . 2 . . . 2 . . . Investigation . | . . . . . . . . . Extermination . | . . . . . . . . . Reinforcement 4 | . 2 . . . 2 . . . Assault . | . . . . . . . . . Garrison . | . . . . . . . . . Intercept . | . . . . . . . . . Construction Impeded . | . . . . . . . . . Haulers Reinforced . | . . . . . . . . . Stealth | -11 -10 -10 -10 -9 -8 -7 -6 -6 --------- Run | Scr Mat Min Exi Min Mat Fac Fac Low Distress Signals 2 | . . . . . 2 . . . Communications Jammed . | . . . . . . . . . Distress Signals . | . . . . . . . . . Times Spotted 51 | . 5 8 . 2 26 . 5 5 Peak Tracking Total 21 | . 3 7 . 2 21 . 5 4 Tactical Retreats 4 | . . 1 . . 1 . . 2 Traps | -11 -10 -10 -10 -9 -8 -7 -6 -6 ------- Run | Scr Mat Min Exi Min Mat Fac Fac Low Traps Triggered . | . . . . . . . . . Indirectly . | . . . . . . . . . Trap Hack Attempts . | . . . . . . . . . Triggered . | . . . . . . . . . Disarmed . | . . . . . . . . . Reprogrammed . | . . . . . . . . . Reused . | . . . . . . . . . Traps Extracted . | . . . . . . . . . Installed . | . . . . . . . . . Triggered . | . . . . . . . . . Machines | -11 -10 -10 -10 -9 -8 -7 -6 -6 ---------- Run | Scr Mat Min Exi Min Mat Fac Fac Low Machines Disabled . | . . . . . . . . . Max in Single Turn . | . . . . . . . . . Machines Sabotaged . | . . . . . . . . . Garrisons Compromised . | . . . . . . . . . Overloaded Fab Kills . | . . . . . . . . . Fab Network Shutdowns . | . . . . . . . . . Hacking | -11 -10 -10 -10 -9 -8 -7 -6 -6 --------- Run | Scr Mat Min Exi Min Mat Fac Fac Low Machines Accessed . | . . . . . . . . . Terminals . | . . . . . . . . . Fabricators . | . . . . . . . . . Repair Stations . | . . . . . . . . . Recycling Units . | . . . . . . . . . Scanalyzers . | . . . . . . . . . Garrison Access . | . . . . . . . . . Total Hacks . | . . . . . . . . . Successful . | . . . . . . . . . Failed . | . . . . . . . . . Catastrophic . | . . . . . . . . . Database Lockouts . | . . . . . . . . . Manual 1 | . . . 1 . . . . . Terminals . | . . . . . . . . . Fabricators . | . . . . . . . . . Repair Stations . | . . . . . . . . . Recycling Units . | . . . . . . . . . Scanalyzers . | . . . . . . . . . Garrison Access . | . . . . . . . . . Terminal Hacks . | . . . . . . . . . Fabricator Hacks . | . . . . . . . . . Repair Station Hacks . | . . . . . . . . . Recycling Unit Hacks . | . . . . . . . . . Scanalyzer . | . . . . . . . . . Garrison Access Hacks . | . . . . . . . . . Unauthorized Hacks . | . . . . . . . . . Terminals . | . . . . . . . . . Fabricators . | . . . . . . . . . Repair Stations . | . . . . . . . . . Recycling Units . | . . . . . . . . . Scanalyzers . | . . . . . . . . . Garrison Access . | . . . . . . . . . Data Cores Recovered . | . . . . . . . . . Used . | . . . . . . . . . Hacking Detections . | . . . . . . . . . Full Trace Events . | . . . . . . . . . Feedback Events . | . . . . . . . . . Feedback Blocked . | . . . . . . . . . Robot Schematics Acquired . | . . . . . . . . . Robots Built . | . . . . . . . . . Matter . | . . . . . . . . . Time . | . . . . . . . . . Total Robot Build Rating . | . . . . . . . . . Part Schematics Acquired . | . . . . . . . . . Parts Built . | . . . . . . . . . Matter . | . . . . . . . . . Time . | . . . . . . . . . Total Part Build Rating . | . . . . . . . . . Parts Repaired . | . . . . . . . . . Time . | . . . . . . . . . Parts Recycled . | . . . . . . . . . Recycled Matter . | . . . . . . . . . Retrieved Matter . | . . . . . . . . . Retrieved Components . | . . . . . . . . . Parts Scanalyzed . | . . . . . . . . . Part Schematics Acquired . | . . . . . . . . . Parts Damaged . | . . . . . . . . . Bothacking | -11 -10 -10 -10 -9 -8 -7 -6 -6 ------------ Run | Scr Mat Min Exi Min Mat Fac Fac Low Used RIF Installer . | . . . . . . . . . Robots Hacked . | . . . . . . . . . Non-combat . | . . . . . . . . . Combat . | . . . . . . . . . Robot Hacks Applied . | . . . . . . . . . Relay Couplers Released . | . . . . . . . . . Robots Rewired . | . . . . . . . . . Allies Hacked . | . . . . . . . . . Hacks Repelled . | . . . . . . . . . Allies | -11 -10 -10 -10 -9 -8 -7 -6 -6 -------- Run | Scr Mat Min Exi Min Mat Fac Fac Low Total Allies 2 | . . 2 . . . . . . Largest Group 2 | . . 2 . . . . . . Highest-Rated Group 46 | . . 46 . . . . . . Highest-Rated Ally 31 | . . 31 . . . . . . Total Orders . | . . . . . . . . . Ally Attacks 13 | . . 13 . . . . . . Total Damage 210 | . . 210 . . . . . . Kills 3 | . . 3 . . . . . . Allies Corrupted . | . . . . . . . . . Allies Melted . | . . . . . . . . . Intel | -11 -10 -10 -10 -9 -8 -7 -6 -6 ------- Run | Scr Mat Min Exi Min Mat Fac Fac Low Robot Analysis Total . | . . . . . . . . . Derelict Logs Recovered . | . . . . . . . . . Drone Launches . | . . . . . . . . . Drone Recoveries . | . . . . . . . . . Exploration | -11 -10 -10 -10 -9 -8 -7 -6 -6 ------------- Run | Scr Mat Min Exi Min Mat Fac Fac Low Turns Passed 594 | 3 25 40 108 10 112 58 55 183 Spaces Moved 951 | 1 49 80 214 19 138 114 105 231 Core 951 | 1 49 80 214 19 138 114 105 231 Treads . | . . . . . . . . . Legs . | . . . . . . . . . Wheels . | . . . . . . . . . Hover . | . . . . . . . . . Flight . | . . . . . . . . . Fastest Speed 50 | 50 50 50 50 50 50 50 50 50 Average Speed 50 | 50 50 50 50 50 50 50 50 50 Slowest Speed 50 | 50 50 50 50 50 50 50 50 50 Overloaded Moves . | . . . . . . . . . Propulsion Burnouts . | . . . . . . . . . Robots Hopped . | . . . . . . . . . Cave-ins Triggered . | . . . . . . . . . Exploration Rate (%) 22 | 2 18 24 61 14 24 5 6 47 Regions Visited 8 Branch Regions 4 Pre-discovered Areas . | . . . . . . . . . Known Exits Taken . | . . . . . . . . . Unknown Exits Taken 8 | 1 1 1 1 1 1 1 1 . Scrap Searched . | . . . . . . . . . Spaces Dug 1 | . . . . . . . . 1 Terrain Destroyed 1 | . . . . . . . . 1 Melee 1 | . . . . . . . . 1 Projectile . | . . . . . . . . . AOE . | . . . . . . . . . Terrain Rammed . | . . . . . . . . . Walls Destroyed . | . . . . . . . . . Machines Disabled . | . . . . . . . . . Actions | -11 -10 -10 -10 -9 -8 -7 -6 -6 --------- Run | Scr Mat Min Exi Min Mat Fac Fac Low Total 1050 | 6 48 79 214 18 179 114 106 286 Wait 85 | . . . . . 36 . . 49 Move 944 | . 48 79 213 18 137 113 105 231 Hop . | . . . . . . . . . Pick Up 4 | . . . 1 . 3 . . . Fast Attach 2 | . . . . . 1 . 1 . Attach 3 | . . . . . 2 1 . . Detach . | . . . . . . . . . Swap . | . . . . . . . . . Drop 6 | 6 . . . . . . . . Fire . | . . . . . . . . . Melee 6 | . . . . . . . . 6 Ram . | . . . . . . . . . Kick . | . . . . . . . . . Crush . | . . . . . . . . . Escape Stasis . | . . . . . . . . . Rewire . | . . . . . . . . . Trap . | . . . . . . . . . Miscellaneous . | . . . . . . . . . Route ------- -11/Scrapyard -10/Materials -10/Mines -10/Exiles -9/Mines -8/Materials -7/Factory -6/Factory (discovered 2 exits: [*Low x2]) -6/Lower Caves (discovered 1 exit: [*Low]) History --------- Turn | Location | Event 4 | -11/Scrapyard | Discovered new exit (range 0) 4 | -11/Scrapyard | Entered Materials 23 | -10/Materials | Discovered new exit (range 11) 29 | -10/Materials | Entered Mines 67 | -10/Mines | Deemed a non-threat by the Exiles lab entrance 67 | -10/Mines | Discovered new exit (range 5) 69 | -10/Mines | Entered Exiles 82 | -10/Exiles | Met 8R-AWN 91 | -10/Exiles | Met EX-HEX 106 | -10/Exiles | Met EX-BIN 112 | -10/Exiles | Aligned with FarCom system 112 | -10/Exiles | Given EX-Vault access code 124 | -10/Exiles | Opened EX-Vault 127 | -10/Exiles | Found Prototype Special Weapon 139 | -10/Exiles | Warned to stay clear of 0b10 Research branches 154 | -10/Exiles | Met EX-DEC 172 | -10/Exiles | Discovered new exit (range 14) 177 | -10/Exiles | Left Exiles lab with Field Lobotomy Kit 177 | -10/Exiles | Entered Mines 181 | -9/Mines | Discovered new exit (range 14) 187 | -9/Mines | Entered Materials 187 | -8/Materials | Evolved 4 slots: Power x1, Propulsion x3 291 | -8/Materials | Discovered new exit (range 16) 299 | -8/Materials | Entered Factory 299 | -7/Factory | Evolved 2 slots: Propulsion x2 320 | -7/Factory | Build established: Mutant 352 | -7/Factory | Discovered new exit (range 12) 357 | -7/Factory | Entered another Factory area 357 | -6/Factory | Evolved 2 slots: Propulsion x2 406 | -6/Factory | Discovered new exit (range 12) 411 | -6/Factory | Discovered new exit (range 14) 412 | -6/Factory | Entered Lower Caves 469 | -6/Lower Caves | Attracted the attention of an 0b10 checkpoint 506 | -6/Lower Caves | Discovered new exit (range 10) 573 | -6/Lower Caves | P-60 Hacker assimilated allied C-55 Analyst 584 | -6/Lower Caves | Scanned by Researcher 595 | -6/Lower Caves | Self-destructed Last Messages --------------- 00520_ SU-HSQ(b) destroyed. 00542_ C-55 Analyst: "How did you find me??? Please don't shoot, I'm a Derelict like you now! I just had to learn more about this intriguing device..." 00556_ Critical hit. 00556_ Arm. Treads destroyed. 00559_ C-55 Analyst suffers critical hit. 00562_ P-60 Hacker fails to hack C-55 Analyst. 00573_ P-60 Hacker hacks C-55 Analyst, assimilated. 00574_ Critical hit. 00574_ Adv. Treads destroyed. 00583_ C-55 Analyst reactivates. 00583_ P-60 Hacker resets C-55 Analyst, system corruption cleaned. 00584_ Held in stasis. 00584_ C-55 Analyst is analyzing... 00584_ ALERT: Encountered unknown unique technology, formulating response. 00588_ Held in stasis. 00588_ C-55 Analyst is analyzing... 00592_ Held in stasis. 00592_ C-55 Analyst is analyzing... Map ----- +----------------------------------------------------+ | | | | | | | | | ???????????????????????????????????????????? | | ???????????????????????????????????????????? | | ???????????????????????????????????????????? | | ???????????????????????????????????????????? | | ???????????????????????????????????????????? | | ???????????????????????????????????????????? | | ???????????????????????????????????????????? | | ???????????????????????????????????????????? | | ???????????????????????????????????????????? | | ???????????????????????????????????????????? | | ???????????????????????????????????????????? | | ???????????????????????????????????????????? | | ???????????????????????????????????????????? | | ???????????????????????????????????????????? | | ???????????????????????????????????????????? | | ?????????????##???########????????????????"? | | ????????????##"#### ##????#####???? "" | | ????????????#"" ## ###### ### | | ????????????#!" # | | ????????????# # c | | ?????????????# ;## ###### #### #?? | | ?????????????### p @ ####### #????????? | | ???????????????## ### ##### / #????????? | | ????????????????# #?####??# % #????????? | | ????????????????# #???????## ##????????? | | ????????????????# #????????## ##?????????? | | ????????????????# #?????????## #????????### | | ????????????????# #??????????# ##??###?## | | ????????????????# ??????##### ### #?# | | ????????????????###??????# "#" #?# | | ?????????????????????????#""" #??# | | ?????????????????????????## #????# | | ??????????????????????????##" #????? | | ???????????????????????????## ## ##??### | | ????????????????????????????# #?###?### | | ????????????????????????????# < ####### | | ????????????????????????????# | | ????????????????????????????# | | ????????????????????????????# ## | | ???????????????????????????# ###### | | ??????????????????????????# #????# | | ????????????????????????? #???# # | | ??????????????????????? ##???## ## | | ??????????????????????## ####??????######? | | ???????????????????????####????????????????? | | ???????????????????????????????????????????? | +----------------------------------------------------+ Best States ------------- Heat Dissipation 37 Energy Generation 5 Energy Capacity 100 Matter Stores 300 Matter Capacity 300 Sight Range 16 Terrain Scan Density 10 Evasion (%) 50 Recoil Reduction 1 Item Schematics ----------------- None Robot Schematics ------------------ None Fabricated ------------ Nothing Alien Tech Used ----------------- None Achievements -------------- None Challenges ------------ None Game ------ Seed DefenseFireBlaster Manual? 1 Play Time 00:08:15 Cumulative 384.8 hours Start 2021.01.20 @ 17:31:05 End 2021.01.20 @ 17:36:54 Sessions 1 Manual Loads 0 Difficulty Rogue Special Mode None Game No. 716 Rogue 716 Adventurer 0 Explorer 0 Win Type - Total 59 Types 45/5/3/2/1/1/2/0/0 Lore% 93 Gallery% 93 Achievement% 76 Wizard Run 0 Options --------- ASCII 1 Keyboard 1 Movement Numpad Keybinds 0 Fullscreen 2 Font 24/Terminus Map View 76x50 Tactical HUD 1 Map Filters NONE Filters NONE Steam 1 RUN: 484b767e-f0a1-4068-bc94-6a994d94b9c9